fUST/lending_fUST_20251030
["ID","MTS","AMOUNT","RATE_DAILY","PERIOD"]
[392666506,1761798646347,-501.27101039,0.0003013,11]
[392666507,1761798646356,-500.0,0.00030136,4]
[392666508,1761798646366,-500.0,0.00030136,4]
[392666509,1761798646375,-500.0,0.00030144,7]
[392666510,1761798646385,-277.0,0.000302,2]
[392666511,1761798646395,-168.0,0.00030264,2]
[392666512,1761798646404,-2062.63176497,0.00030275,2]
[392666513,1761798646414,-500.0,0.0003041,4]
[392666514,1761798646424,-500.0,0.0003041,4]
[392666515,1761798646434,-587.0,0.0003045,2]
[392666516,1761798646450,-12500.0,0.00030479,10]
[392666517,1761798646459,-12500.0,0.00030488,10]
[392666518,1761798646469,-7732.45929748,0.00030488,10]
[392666519,1761798646480,-196.0,0.00030504,2]
[392666520,1761798646489,-151.0,0.00030509,7]
[392666521,1761798646499,-175.82619481,0.00030509,7]
[392666522,1761798646510,-166.0,0.00030509,7]
[392666523,1761798646519,-166.0,0.00030509,7]
[392666524,1761798646528,-166.0,0.00030509,7]
[392666525,1761798646537,-331.0,0.00030509,7]
[392666526,1761798646546,-185.25765192,0.00030509,7]
[392666527,1761798646556,-166.0,0.00030509,7]
[392666528,1761798646565,-166.0,0.00030509,7]
[392666529,1761798646574,-2062.63176497,0.0003054,2]
[392666530,1761798646583,-196.0,0.00030543,2]
[392666531,1761798646593,-500.0,0.00030547,10]
[392666532,1761798646602,-347.04990261,0.00030547,10]
[392666533,1761798646611,-500.0,0.00030547,10]
[392666534,1761798646620,-626.27934058,0.00030547,10]
[392666535,1761798646629,-196.0,0.00030563,2]
[392666536,1761798646638,-168.0,0.00030613,7]
[392666537,1761798646648,-500.0,0.00030684,4]
[392666538,1761798646658,-387.01,0.00030684,4]
[392666539,1761798646667,-2062.63176497,0.00030719,2]
[392666540,1761798646676,-196.0,0.00030723,2]
[392666541,1761798646685,-1000.0,0.000308,60]
[392666542,1761798646700,-621.37264747,0.00030807,2]
[392666543,1761798646709,-151.0,0.00030849,6]
[392666544,1761798646719,-168.0,0.0003086,2]
[392666545,1761798646728,-196.0,0.00030905,2]
[392666546,1761798646737,-168.0,0.00030934,2]
[392666547,1761798646746,-500.0,0.00030958,4]
[392666548,1761798646755,-500.0,0.00030966,7]
[392666549,1761798646765,-190.83955447,0.00031,120]
[392666550,1761798646774,-184.17507658,0.00031,120]
[392666551,1761798646783,-161.16383932,0.00031,120]
[392666552,1761798646793,-217.58084659,0.00031,120]
[392666553,1761798646802,-196.78489191,0.00031,120]
[392666554,1761798646811,-196.0,0.00031046,2]
[392666555,1761798646925,-2062.63176504,0.00031126,2]
[392666556,1761798646941,-250.0,0.00031129,2]
[392666557,1761798646954,-150.648,0.00031129,2]
[392666558,1761798646963,-230.505,0.00031129,2]
[392666559,1761798646973,-287.487,0.00031129,2]
[392666560,1761798646983,-264.577,0.00031129,2]
[392666561,1761798646992,-285.813,0.00031129,2]
[392666562,1761798647002,-212.422,0.00031129,2]
[392666563,1761798647012,-500.0,0.00031232,4]
[392666564,1761798647022,-252.95,0.00031262,15]
[392666565,1761798647032,-196.0,0.00031295,7]
[392666566,1761798647042,-813.48,0.000313,2]
[392666567,1761798647052,-252.95,0.00031362,15]
[392666568,1761798647063,-196.0,0.00031363,7]
[392666569,1761798647072,-150.0,0.00031409,30]
[392666570,1761798647082,-196.0,0.0003146,2]
[392666571,1761798647091,-252.95,0.00031462,15]
[392666572,1761798647100,-500.0,0.00031506,4]
[392666573,1761798647110,-196.0,0.0003156,2]
[392666574,1761798647119,-252.95,0.00031562,15]
[392666575,1761798647128,-151.0,0.00031598,6]
[392666576,1761798647137,-168.83622189,0.000316,2]
[392666577,1761798647147,-252.95,0.00031662,15]
[392666578,1761798647155,-281.6,0.000317,4]
[392666579,1761798647165,-4917.65,0.000317,7]
[392666580,1761798647174,-252.95,0.00031762,15]
[392666581,1761798647183,-500.0,0.0003178,4]
[392666582,1761798647198,-203.25214931,0.0003178,3]
[392666583,1761798647207,-252.95,0.00031862,15]
[392666584,1761798647216,-252.95,0.00031962,15]
[392666585,1761798647226,-178869.61534283,0.00031998,2]
[392666586,1761798647236,-300.0,0.00032,120]
[392666587,1761798647246,-196.0,0.00032001,2]
[392666588,1761798647255,-500.0,0.00032054,4]
[392666589,1761798647265,-252.95,0.00032062,15]
[392666590,1761798647275,-252.95,0.00032162,15]
[392666591,1761798647284,-252.95,0.00032262,15]
[392666592,1761798647293,-500.0,0.00032328,4]
[392666593,1761798647303,-2000.0,0.00032329,120]
[392666594,1761798647312,-151.0,0.00032347,7]
[392666595,1761798647321,-252.95,0.00032362,15]
[392666596,1761798647330,-200.0,0.00032362,120]
[392666597,1761798647339,-252.95,0.00032462,15]
[392666598,1761798647348,-249.42738462,0.00032556,2]
[392666599,1761798647357,-252.95,0.00032562,15]
[392666600,1761798647367,-463.40063482,0.00032602,4]
[392666601,1761798647376,-500.0,0.0003261,7]
[392666602,1761798647385,-249.42738462,0.00032656,2]
[392666603,1761798647395,-252.95,0.00032662,15]
[392666604,1761798647404,-249.42738462,0.00032756,2]
[392666605,1761798647413,-252.95,0.00032762,15]
[392666606,1761798647422,-694.00061925,0.00032807,2]
[392666607,1761798647431,-249.42738462,0.00032856,2]
[392666608,1761798647445,-252.95,0.00032862,15]
[392666609,1761798647455,-2000.0,0.00032877,120]
[392666610,1761798647465,-823.0,0.00032954,2]
[392666611,1761798647474,-249.42738462,0.00032956,2]
[392666612,1761798647483,-252.95,0.00032962,60]
[392666613,1761798647492,-1020.0,0.00033,3]
[392666614,1761798647503,-813.48,0.00033,14]
[392666615,1761798647517,-163.341324,0.00033001,3]
[392666616,1761798647526,-163.341324,0.00033016,20]
[392666617,1761798647535,-249.42738462,0.00033056,2]
[392666618,1761798647544,-252.95,0.00033062,60]
[392666619,1761798647554,-151.0,0.00033096,7]
[392666620,1761798647564,-201.0,0.0003314,33]
[392666621,1761798647574,-249.42738462,0.00033156,2]
[392666622,1761798647583,-252.95,0.00033162,60]
[392666623,1761798647592,-722.005916,0.00033165,2]
[392666624,1761798647602,-249.42738462,0.00033256,2]
[392666625,1761798647611,-252.95,0.00033262,60]
[392666626,1761798647621,-4917.65,0.000333,14]
[392666627,1761798647631,-249.42738462,0.00033356,2]
[392666628,1761798647641,-252.95,0.00033362,60]
[392666629,1761798647650,-2000.0,0.00033425,120]
[392666630,1761798647660,-249.42738462,0.00033456,2]
[392666631,1761798647669,-252.95,0.00033462,60]
[392666632,1761798647678,-15463.74,0.00033495,2]
[392666633,1761798647687,-249.42738462,0.00033556,2]
[392666634,1761798647699,-252.95,0.00033562,60]
[392666635,1761798647708,-309.6533167,0.00033616,30]
[392666636,1761798647717,-249.42738462,0.00033656,2]
[392666637,1761798647727,-252.95,0.00033662,60]
[392666638,1761798647736,-160.0,0.00033698,3]
[392666639,1761798647746,-302.56933958,0.00033698,5]
[392666640,1761798647754,-249.42738462,0.00033756,2]
[392666641,1761798647763,-252.95,0.00033762,60]
[392666642,1761798647772,-200.0,0.00033781,120]
[392666643,1761798647781,-150.0,0.00033825,30]
[392666644,1761798647790,-1006.642264,0.0003384,8]
[392666645,1761798647800,-151.0,0.00033846,7]
[392666646,1761798647809,-1000.0,0.0003386,8]
[392666647,1761798647818,-252.95,0.00033862,60]
[392666648,1761798647827,-1000.0,0.0003388,8]
[392666649,1761798647837,-1172.919825,0.0003388,8]
[392666650,1761798647847,-19390.25861039,0.00033899,2]
[392666651,1761798647860,-1000.0,0.000339,8]
[392666652,1761798647869,-1000.0,0.000339,8]
[392666653,1761798647879,-278.55,0.00033922,4]
[392666654,1761798647888,-252.95,0.00033962,60]
[392666655,1761798647899,-2000.0,0.00033973,120]
[392666656,1761798647908,-15000.0,0.00034,90]
[392666657,1761798647917,-300.0,0.00034,120]
[392666658,1761798647928,-10000.0,0.00034,120]
[392666659,1761798647937,-1200.0,0.00034,2]
[392666660,1761798647953,-171554.99534575,0.00034021,20]
[392666661,1761798647962,-500.0,0.00034021,60]
[392666662,1761798647971,-255.0,0.00034021,60]
[392666663,1761798647980,-226.5797781,0.00034021,15]
[392666664,1761798647991,-816.51949142,0.00034021,15]
[392666665,1761798648000,-1527.41078476,0.00034021,15]
[392666666,1761798648009,-150.0,0.00034021,2]
[392666667,1761798648019,-217.24319998,0.00034021,60]
[392666668,1761798648028,-3697.07913725,0.00034021,30]
[392666669,1761798648037,-201.53722615,0.00034021,2]
[392666670,1761798648046,-160.99257807,0.00034021,30]
[392666671,1761798648055,-22489.8507151,0.00034021,120]
[392666672,1761798648064,-30480.0,0.00034021,120]
[392666673,1761798648073,-257.15932289,0.00034021,120]
[392666674,1761798648082,-200.0,0.00034021,30]
[392666675,1761798648091,-24032.60219636,0.00034021,120]
[392666676,1761798648100,-252.95,0.00034062,60]
[392666677,1761798648109,-150.0,0.00034129,2]
[392666678,1761798648118,-150.0,0.00034129,2]
[392666679,1761798648127,-150.0,0.00034129,2]
[392666680,1761798648136,-252.95,0.00034162,60]
[392666681,1761798648146,-300.0,0.00034247,7]
[392666682,1761798648155,-205.8123487,0.00034252,120]
[392666683,1761798648165,-500.0,0.00034254,7]
[392666684,1761798648174,-252.95,0.00034262,60]
[392666685,1761798648183,-252.95,0.00034362,60]
[392666686,1761798648197,-252.98779893,0.00034462,60]
[392666687,1761798648208,-2000.0,0.00034521,120]
[392666688,1761798648218,-151.0,0.00034595,30]
[392666689,1761798648228,-813.48,0.000347,14]
[392666690,1761798648237,-200.0,0.00034762,120]
[392666691,1761798648247,-766.62859103,0.00034807,120]
[392666692,1761798648256,-200.0,0.00034943,120]
[392666693,1761798648266,-2000.0,0.00035,120]
[392666694,1761798648275,-516.25423166,0.00035,60]
[392666695,1761798648284,-10000.0,0.00035,120]
[392666696,1761798648293,-4917.65,0.00035,14]
[392666697,1761798648302,-350.3921015,0.00035,4]
[392666698,1761798648312,-2000.0,0.00035068,120]
[392666699,1761798648321,-1297.0,0.000352,14]
[392666700,1761798648330,-250.0,0.00035287,2]
[392666701,1761798648339,-151.0,0.00035344,30]
[392666702,1761798648348,-401.0,0.0003539,40]
[392666703,1761798648357,-200.0,0.00035428,120]
[392666704,1761798648367,-116232.41880624,0.0003544,30]
[392666705,1761798648413,-43530.31892977,0.0003544,30]
[392666706,1761798648586,433.23291912,0.00024932,2]
[392666711,1761798733788,306.44236576,0.000249,2]
[392666712,1761798734411,306.44236576,0.000252,2]
[392666716,1761798778098,485.75027392,0.000249,2]
[392666717,1761798778856,485.75027392,0.000252,2]
[392666729,1761798914771,-165.94931794,0.000253,2]
[392666730,1761798914799,-354.51476722,0.00025303,2]
[392666731,1761798914826,-306.44236576,0.000254,2]
[392666732,1761798914855,-485.75027392,0.000254,2]
[392666733,1761798914882,-306.44236576,0.000257,2]
[392666734,1761798914916,-485.75027392,0.000257,2]
[392666735,1761798914946,-205.8312446,0.000259,2]
[392666736,1761798914975,-306.44236576,0.000259,2]
[392666737,1761798915005,-485.75027392,0.000259,2]
[392666738,1761798915035,-403.80339554,0.00025997,2]
[392666739,1761798915062,-200.0,0.000265,7]
[392666740,1761798915090,-1200.0,0.00026574,2]
[392666741,1761798915286,-300.0,0.00026848,2]
[392666742,1761798915314,-342.50661566,0.00027018,2]
[392666743,1761798915342,-418.32742532,0.00027303,2]
[392666744,1761798915369,-1200.0,0.00027396,2]
[392666745,1761798915396,-500.0,0.00027397,2]
[392666746,1761798915430,-644.61,0.00027397,2]
[392666747,1761798915458,-500.0,0.00027397,2]
[392666748,1761798915485,-601.37642633,0.00027397,2]
[392666749,1761798915512,-486.36906538,0.00027397,2]
[392666750,1761798915627,-13.63093462,0.00027397,2]
[392666751,1761798915655,-500.0,0.00027397,2]
[392666752,1761798915687,-500.0,0.00027397,2]
[392666753,1761798915716,-500.0,0.00027397,2]
[392666754,1761798915744,-500.0,0.00027397,2]
[392666755,1761798915772,-500.0,0.00027397,2]
[392666756,1761798915799,-502.23,0.00027397,2]
[392666757,1761798915827,-500.0,0.00027397,2]
[392666758,1761798915856,-500.0,0.00027397,2]
[392666759,1761798915884,-500.0,0.00027397,2]
[392666760,1761798915917,-468.28813076,0.00027397,2]
[392666761,1761798917620,-31.71186924,0.00027397,2]
[392666762,1761798917649,-500.0,0.00027397,2]
[392666763,1761798917680,-500.0,0.00027397,2]
[392666764,1761798917707,-500.0,0.00027397,2]
[392666765,1761798917735,-500.0,0.00027397,2]
[392666766,1761798917762,-500.0,0.00027397,2]
[392666767,1761798917790,-500.0,0.00027397,2]
[392666768,1761798917817,-501.0409205,0.00027397,2]
[392666769,1761798917844,-500.0,0.00027397,2]
[392666770,1761798917872,-400.93634322,0.00027397,2]
[392666771,1761798917899,-500.0,0.00027397,2]
[392666772,1761798918018,-223.39,0.00027397,2]
[392666773,1761798918047,-221.47621276,0.00027397,2]
[392666775,1761798918074,-500.0,0.00027397,2]
[392666776,1761798918102,-299.82,0.00027397,2]
[392666777,1761798918129,-530.1291898,0.00027397,2]
[392666778,1761798918157,-500.0,0.00027397,2]
[392666779,1761798918190,-500.0,0.00027397,2]
[392666780,1761798918216,-500.0,0.00027397,2]
[392666781,1761798918243,-505.54545916,0.00027397,2]
[392666782,1761798918270,-500.0,0.00027397,2]
[392666783,1761798918298,-500.0,0.00027397,2]
[392666784,1761798923667,-509.40949313,0.00027397,2]
[392666785,1761798923706,-500.0,0.00027397,2]
[392666786,1761798923735,-522.95229636,0.00027397,2]
[392666787,1761798923765,-527.87644261,0.00027397,2]
[392666788,1761798923797,-500.0,0.00027397,2]
[392666789,1761798923827,-451.0,0.00027397,2]
[392666790,1761798923856,-500.0,0.00027397,2]
[392666791,1761798923884,-514.04948893,0.00027397,2]
[392666792,1761798923913,-500.0,0.00027397,2]
[392666793,1761798923951,-449.43455794,0.00027397,2]
[392666794,1761798924186,-50.56544206,0.00027397,2]
[392666795,1761798924214,-500.0,0.00027397,2]
[392666796,1761798924242,-500.0,0.00027397,2]
[392666797,1761798924270,-500.0,0.000274,5]
[392666798,1761798924298,-165.94931794,0.00027571,2]
[392666799,1761798924325,-391.04469605,0.00027645,2]
[392666800,1761798924354,-500.0,0.00027669,2]
[392666801,1761798924482,-500.0,0.00027669,2]
[392666802,1761798924510,-255.41824689,0.00027669,2]
[392666803,1761798924539,-500.0,0.00027669,2]
[392666804,1761798924568,-500.0,0.00027669,2]
[392666805,1761798924596,-500.0,0.00027669,2]
[392666806,1761798929738,-500.0,0.00027397,2]
[392666807,1761798929765,-500.0,0.00027397,2]
[392666808,1761798934311,500.0,0.00027397,2]
[392666809,1761798934570,500.0,0.00027397,2]
[392666811,1761798936808,500.0,0.00027397,2]
[392666812,1761798939798,500.0,0.00027397,2]
[392666813,1761798941845,500.0,0.00027397,2]
[392666814,1761798946538,500.0,0.00027397,2]
[392666815,1761798948914,500.0,0.00027397,2]
[392666816,1761798952826,500.0,0.00027397,2]
[392666817,1761798956006,500.0,0.00027397,2]
[392666818,1761798956735,500.0,0.00027397,2]
[392666819,1761798957906,500.0,0.00027397,2]
[392666820,1761798958800,500.0,0.00027397,2]
[392666821,1761798959880,500.0,0.00027397,2]
[392666822,1761798961865,500.0,0.00027397,2]
[392666823,1761798963140,500.0,0.00027397,2]
[392666824,1761799080316,182.06,0.00015984,2]
[392666826,1761799080612,182.06,0.00015984,2]
[392666828,1761799117972,-403.80339554,0.00027395,2]
[392666829,1761799118000,-1200.0,0.00027396,2]
[392666830,1761799118031,-300.0,0.00027396,2]
[392666831,1761799118061,-500.0,0.00027397,2]
[392666832,1761799118091,-500.0,0.00027397,2]
[392666833,1761799118123,-500.0,0.00027397,2]
[392666834,1761799118154,-500.0,0.00027397,2]
[392666835,1761799118194,-341.5364272,0.00027397,2]
[392666836,1761799118224,-500.0,0.00027397,2]
[392666837,1761799118255,-17.53573764,0.00027397,2]
[392666838,1761799123847,-339.05792337,0.0002589,2]
[392666839,1761799123875,-474.25887924,0.00027397,2]
[392666840,1761799123903,-4065.786657,0.00027436,2]
[392666841,1761799130019,-499.82417687,0.00027568,2]
[392666843,1761799160858,300.0,0.00016,2]
[392666844,1761799171743,300.0,0.00016,2]
[392666845,1761799182796,300.0,0.00016,2]
[392666846,1761799194006,300.0,0.00016,2]
[392666847,1761799225947,663.372304,0.00013699,2]
[392666849,1761799460403,1600.59,0.00020187,2]
[392666876,1761799543631,169.1738738,0.00012842,2]
[392666877,1761799632125,-272.16085341,0.00020187,2]
[392666878,1761799633125,-391.21145059,0.00020187,2]
[392666879,1761799633146,-332.27676491,0.00020194,2]
[392666880,1761799633166,-392.08658259,0.00022194,2]
[392666881,1761799633184,-389.71022054,0.00024194,2]
[392666882,1761799637074,-62.18617973,0.00024194,2]
[392666883,1761799637096,-114.90053469,0.0002562,15]
[392666884,1761799688935,4542.86865818,0.00025205,2]
[392666885,1761799689161,426.69,0.00030137,120]
[392666886,1761799705080,5000.0,0.00025205,2]
[392666887,1761799758563,308.75156995,0.00025412,2]
[392666936,1761799832108,-85.09946531,0.0002562,15]
[392666938,1761799832118,-2069.579058,0.00025739,2]
[392666940,1761799832128,-1614.831709,0.00026222,2]
[392666942,1761799832138,-403.80339554,0.00026661,2]
[392666943,1761799832148,-663.372304,0.00026676,2]
[392666944,1761799832158,-5.58535577,0.00026847,2]
[392666945,1761799832170,-294.41464423,0.00026847,2]
[392666956,1761799832338,-300.0,0.00026847,2]
[392666958,1761799832354,-962.77713181,0.00026847,2]
[392666961,1761799832366,-237.22286819,0.00026847,2]
[392666963,1761799832376,-1200.0,0.00026848,2]
[392666965,1761799832389,-500.0,0.00027397,2]
[392666967,1761799832398,-221.55237732,0.00027397,2]
[392666969,1761799832407,-500.0,0.00027397,2]
[392666971,1761799832417,-500.25733323,0.00027397,2]
[392666973,1761799832426,-500.0,0.00027397,2]
[392666975,1761799832436,-441.24178965,0.00027397,2]
[392666977,1761799832448,-58.75821035,0.00027397,2]
[392666979,1761799832460,-498.50178965,0.00027397,2]
[392666981,1761799832471,-1.85548524,0.00027397,2]
[392666983,1761799832481,-500.0,0.00027397,2]
[392666985,1761799832491,-471.71451476,0.00027397,2]
[392666987,1761799832501,-28.28548524,0.00027397,2]
[392666989,1761799832510,-500.0,0.00027397,2]
[392666991,1761799832520,-500.0,0.00027397,2]
[392666993,1761799832530,-500.0,0.00027397,2]
[392666995,1761799832539,-483.21836974,0.00027397,2]
[392666997,1761799832548,-500.85724462,0.00027397,2]
[392666999,1761799832557,-504.614297,0.00027397,2]
[392667001,1761799832568,-370.46407762,0.00027397,2]
[392667003,1761799832577,-364.32685254,0.00027412,2]
[392667005,1761799832586,-845.0114159,0.0002742,2]
[392667007,1761799832595,-231.14,0.00027566,4]
[392667009,1761799832605,-417.76037867,0.00027567,2]
[392667011,1761799832614,-646.9647818,0.00027567,2]
[392667013,1761799832623,-211.76164435,0.00027567,2]
[392667094,1761799838094,-389.99479004,0.00027566,2]
[392667095,1761799838104,-500.0,0.00027566,2]
[392667096,1761799838114,-500.0,0.00027566,2]
[392667097,1761799838124,-500.0,0.00027566,2]
[392667098,1761799838135,-500.0,0.00027566,2]
[392667099,1761799838146,-500.0,0.00027566,2]
[392667100,1761799838156,-500.0,0.00027566,2]
[392667101,1761799838166,-500.0,0.00027566,2]
[392667102,1761799838175,-500.0,0.00027566,2]
[392667103,1761799838185,-500.0,0.00027566,2]
[392667104,1761799838194,-451.95768522,0.00027566,2]
[392667105,1761799838204,-500.0,0.00027566,2]
[392667106,1761799838213,-500.0,0.00027566,2]
[392667107,1761799838223,-500.0,0.00027566,2]
[392667108,1761799838232,-500.0,0.00027566,2]
[392667109,1761799838241,-500.0,0.00027566,2]
[392667110,1761799838253,-500.0,0.00027566,2]
[392667111,1761799838263,-500.0,0.00027566,2]
[392667112,1761799838272,-500.0,0.00027566,2]
[392667113,1761799838282,-500.0,0.00027566,2]
[392667114,1761799838291,-500.0,0.00027566,2]
[392667115,1761799838301,-212.94819919,0.00027566,2]
[392667116,1761799838311,-500.0,0.00027566,2]
[392667117,1761799838320,-500.0,0.00027566,2]
[392667118,1761799838329,-500.0,0.00027566,2]
[392667119,1761799838339,-500.0,0.00027566,2]
[392667120,1761799838348,-500.0,0.00027566,2]
[392667121,1761799838358,-500.0,0.00027566,2]
[392667122,1761799838367,-363.06312905,0.00027566,2]
[392667156,1761799844001,-136.93687095,0.00027566,2]
[392667157,1761799844011,-500.0,0.00027566,2]
[392667158,1761799844021,-500.0,0.00027566,2]
[392667159,1761799844030,-168.45591997,0.00027566,2]
[392667160,1761799844040,-500.0,0.00027566,2]
[392667161,1761799844050,-500.0,0.00027566,2]
[392667162,1761799844060,-500.0,0.00027566,2]
[392667163,1761799844070,-500.0,0.00027566,2]
[392667164,1761799844080,-500.0,0.00027566,2]
[392667165,1761799844090,-500.0,0.00027566,2]
[392667166,1761799844099,-500.0,0.00027566,2]
[392667167,1761799844110,-500.0,0.00027566,2]
[392667168,1761799844120,-500.0,0.00027566,2]
[392667169,1761799844131,-500.0,0.00027566,2]
[392667170,1761799844141,-500.0,0.00027566,2]
[392667171,1761799844152,-500.0,0.00027566,2]
[392667172,1761799844161,-500.0,0.00027566,2]
[392667173,1761799844171,-354.05346384,0.00027566,2]
[392667174,1761799844183,-500.0,0.00027566,2]
[392667175,1761799844193,-500.0,0.00027566,2]
[392667176,1761799844203,-500.0,0.00027566,2]
[392667177,1761799844212,-500.0,0.00027566,2]
[392667178,1761799844221,-500.0,0.00027566,2]
[392667179,1761799844231,-500.0,0.00027566,2]
[392667180,1761799844240,-500.0,0.00027566,2]
[392667181,1761799844250,-500.0,0.00027566,2]
[392667182,1761799844260,-500.0,0.00027566,2]
[392667183,1761799844269,-500.0,0.00027566,2]
[392667184,1761799844279,-500.0,0.00027566,2]
[392667185,1761799844288,-500.0,0.00027566,2]
[392667186,1761799844297,-500.0,0.00027566,2]
[392667187,1761799844307,-500.0,0.00027566,2]
[392667188,1761799844326,-500.0,0.00027566,2]
[392667189,1761799844337,-500.0,0.00027566,2]
[392667190,1761799844347,-500.0,0.00027566,2]
[392667191,1761799844356,-500.0,0.00027566,2]
[392667192,1761799844366,-335.55492035,0.00027566,2]
[392667193,1761799844380,-500.0,0.00027566,2]
[392667194,1761799844390,-500.0,0.00027566,2]
[392667195,1761799844399,-500.0,0.00027566,2]
[392667196,1761799844410,-500.0,0.00027566,4]
[392667197,1761799844421,-202.88298782,0.00027566,4]
[392667198,1761799844430,-506.23936794,0.00027567,4]
[392667199,1761799844441,-500.0,0.00027567,3]
[392667200,1761799844451,-500.0,0.00027567,4]
[392667201,1761799844461,-500.0,0.00027567,4]
[392667202,1761799844470,-526.30188981,0.00027567,4]
[392667203,1761799844480,-502.65855755,0.00027567,4]
[392667204,1761799844490,-500.0,0.00027567,4]
[392667205,1761799844499,-500.0,0.00027567,4]
[392667206,1761799844509,-500.0,0.00027567,4]
[392667207,1761799844519,-500.0,0.00027567,4]
[392667208,1761799844528,-500.0,0.00027567,4]
[392667209,1761799844538,-500.0,0.00027567,4]
[392667210,1761799844547,-202.98720012,0.00027567,4]
[392667211,1761799844556,-500.0,0.00027567,4]
[392667212,1761799844565,-502.57375415,0.00027567,4]
[392667213,1761799844575,-503.51202918,0.00027567,4]
[392667214,1761799844584,-500.0,0.00027567,4]
[392667215,1761799844594,-500.0,0.00027567,4]
[392667216,1761799844603,-501.76768934,0.00027567,4]
[392667217,1761799844613,-508.76785209,0.00027567,4]
[392667218,1761799844622,-500.0,0.00027567,4]
[392667219,1761799844632,-500.0,0.00027567,4]
[392667220,1761799844641,-500.0,0.00027567,4]
[392667221,1761799844651,-9500.18582313,0.00027568,2]
[392667222,1761799844660,-151.0,0.00027633,2]
[392667224,1761799844670,-151.0,0.00027633,2]
[392667225,1761799844679,-151.0,0.00027633,2]
[392667227,1761799844688,-151.0,0.00027633,2]
[392667228,1761799844698,-151.0,0.00027633,2]
[392667229,1761799844708,-151.0,0.00027633,2]
[392667230,1761799844729,-151.0,0.00027633,2]
[392667231,1761799844744,-151.0,0.00027633,2]
[392667232,1761799844755,-151.0,0.00027633,2]
[392667233,1761799844764,-151.0,0.00027633,2]
[392667234,1761799844774,-151.0,0.00027633,2]
[392667235,1761799844783,-151.0,0.00027633,2]
[392667236,1761799844792,-151.0,0.00027633,2]
[392667237,1761799844801,-151.0,0.00027633,2]
[392667238,1761799844810,-151.0,0.00027633,2]
[392667239,1761799844819,-151.0,0.00027633,2]
[392667240,1761799844828,-151.0,0.00027633,2]
[392667241,1761799844838,-151.0,0.00027633,2]
[392667242,1761799844847,-151.0,0.00027633,2]
[392667243,1761799844856,-151.0,0.00027633,2]
[392667244,1761799844866,-563.72342845,0.00027666,2]
[392667245,1761799844875,-500.0,0.00027666,2]
[392667246,1761799844884,-500.0,0.00027666,2]
[392667247,1761799844894,-500.0,0.00027666,2]
[392667248,1761799844904,-500.0,0.00027666,2]
[392667249,1761799844914,-500.0,0.00027666,2]
[392667250,1761799844922,-178.7828382,0.00027666,2]
[392667251,1761799844932,-500.0,0.00027667,4]
[392667252,1761799844941,-243.93,0.00027667,4]
[392667253,1761799844950,-587.91516391,0.00027667,4]
[392667254,1761799844963,-500.0,0.00027667,4]
[392667255,1761799844972,-500.0,0.00027667,4]
[392667256,1761799844982,-362.09,0.00027667,4]
[392667257,1761799844992,-185.46,0.00027667,4]
[392667258,1761799845003,-626.9,0.00027667,4]
[392667259,1761799845012,-572.13991641,0.00027671,4]
[392667260,1761799845022,-501.91430783,0.00027671,4]